Cogmind - Beta 14 @@@ ROGUE MODE // 2025.04.01 @ 01:02:20 Player: Regi Result: Destroyed by G-34 Mercenary with Small Laser Performance ------------- Evolutions (1) 500 Regions Visited (3) 600 Robots Destroyed (23) 115 Value Destroyed (630) 630 Prototype IDs (3) 60 Alien Tech Used (0) 0 Bonus (-21) -21 TOTAL SCORE: 1884 Bonus ------- Friendly Fire -21 Cogmind --------- Core Integrity 0/400 Matter 6/300 Energy 68/100 System Corruption 0% Temperature Cool (6) Movement Core (250) Ox4 Location -9/Materials Parts ------- > --- POWER (1) -------- (None) > --- PROPULSION (2) --- (None) > --- UTILITY (4) ------ Heat Sink Medium Storage Unit Signal Interpreter > --- WEAPON (2) ------- Pulse Rifle > --- INVENTORY (10) --- Beam Rifle Peak State ------------ > --- POWER ------------ Light Ion Engine > --- PROPULSION ------- Aluminum Leg Aluminum Leg > --- UTILITY ---------- Heat Sink Heat Sink Medium Storage Unit Terrain Scanner > --- WEAPON ----------- Grenade Launcher Grenade Launcher > --- INVENTORY -------- Aluminum Leg Small Storage Unit Signal Interpreter [Rating: 9] Favorites ----------- Power Light Ion Engine Engine Light Ion Engine Propulsion Aluminum Leg Leg Aluminum Leg Hover Unit Hover Unit Utility Medium Storage Unit Device Heat Sink Storage Medium Storage Unit Processor Signal Interpreter Protection Light Armor Plating Weapon Grenade Launcher Energy Gun EM Pulse Gun Ballistic Gun Assault Rifle Launcher Grenade Launcher Build | -11 -10 -10 -9 ------- Run | Yrd Mat Min Mat Slots Evolved 2 | . . . 2 Power . | . . . . Propulsion . | . . . . Utility 2 | . . . 2 Weapon . | . . . . Parts Attached 33 | 8 5 5 15 Power 2 | 1 1 . . Engine 2 | 1 1 . . Core . | . . . . Reactor . | . . . . Propulsion 8 | 2 . 1 5 Treads . | . . . . Leg 6 | 2 . 1 3 Wheel . | . . . . Hover 2 | . . . 2 Flight . | . . . . Utility 12 | 1 1 3 7 Device 8 | . 1 2 5 Storage 2 | 1 . 1 . Processor 1 | . . . 1 Hackware . | . . . . Protection 1 | . . . 1 Artifact . | . . . . Weapon 11 | 4 3 1 3 Energy Gun 6 | 3 1 . 2 Energy Cannon . | . . . . Ballistic Gun 1 | 1 . . . Ballistic Cannon . | . . . . Launcher 4 | . 2 1 1 Special Weapon . | . . . . Impact Weapon . | . . . . Slashing Weapon . | . . . . Piercing Weapon . | . . . . Special Melee Weapon . | . . . . Unidentified Prototypes 1 | . . . 1 Parts Lost 13 | . 2 . 11 Power 1 | . . . 1 Propulsion 5 | . . . 5 Utility 2 | . . . 2 Weapon 5 | . 2 . 3 Highest Loss Streak 6 | . 2 . 6 To Critical Strikes . | . . . . Average Slot Usage (%) 86 | . 87 97 83 Engine 9 | . 14 14 6 Leg 21 | . 28 28 16 Hover 1 | . . . 1 Device 13 | . 7 14 15 Storage 12 | . 14 14 11 Processor 5 | . . . 10 Protection 2 | . . . 4 Energy Gun 4 | . 13 . . Launcher 14 | . 8 26 15 Peak Build Rating 9 | 6 7 7 9 Average Rating 6 | 3 6 6 7 On Entrance 4 | . 6 6 7 Naked Turns . | . . . . Heaviest Build 23 | 12 13 20 23 Greatest Support 20 | 20 20 20 20 Greatest Overweight (x) 4 | . . . 4 Average Overweight (x) . | . . . . Largest Inventory Capacity 10 | 8 8 10 10 Average Capacity 9 | 7 8 9 10 Most Carried 6 | 5 5 6 5 Average Carried 2 | 2 2 5 2 Final Capacity 10 | 8 8 10 10 Final Carried 5 | 1 5 5 1 Class Distribution -------------------- 75% | Mutant 24% | Scavenger-Mutant Dominant Class ---------------- Mutant | -10/Materials Mutant | -10/Mines Mutant | -9/Materials Resources | -11 -10 -10 -9 ----------- Run | Yrd Mat Min Mat Matter Collected 625 | 272 178 92 83 Remotely . | . . . . Salvage Created 687 | 76 454 . 157 Parts 42 | 3 27 . 12 Haulers Intercepted . | . . . . Recyclers Shooed . | . . . . Parts Field Recycled . | . . . . Retrieved Matter . | . . . . Parts Self-Destructed . | . . . . Prevented . | . . . . Kills | -11 -10 -10 -9 ------- Run | Yrd Mat Min Mat Combat Hostiles Destroyed 14 | . 8 . 6 Guns 3 | . 3 . . AOE 11 | . 5 . 6 Classes Destroyed 7 | 1 3 . 3 Worker 1 | . . . 1 Builder 3 | . 1 . 2 Recycler 3 | 1 2 . . Watcher 2 | . 2 . . Grunt 11 | . 8 . 3 Duelist 1 | . . . 1 Sentry 2 | . . . 2 Best Kill Streak 8 | 1 8 . 4 Combat Bots Only 3 | . 3 . 2 Max Kills in Single Turn 3 | 1 2 . 3 Gunslinging . | . . . . Exploded 2 | . 2 . 2 Melee . | . . . . Uniques/NPCs Destroyed . | . . . . Combat | -11 -10 -10 -9 -------- Run | Yrd Mat Min Mat Hostile Shots Fired 151 | . 33 1 117 Missed 47 | . 8 . 39 Damage Taken 1339 | . 321 41 977 Core 441 | . 35 . 406 Absorbed by Shields . | . . . . Core Remaining (%) 93 | 100 . 86 . Volleys Fired 60 | 4 40 1 15 Largest 2 | 1 2 2 2 Hottest 80 | 20 80 60 60 Shots Fired 89 | 4 55 2 28 Gun 45 | 4 41 . . Cannon . | . . . . Launcher 44 | . 14 2 28 Special . | . . . . Kinetic 4 | 4 . . . Thermal . | . . . . Explosive 44 | . 14 2 28 Electromagnetic 41 | . 41 . . Robot Hit Streak 8 | 2 8 . 6 Robot Miss Streak 3 | 1 3 . 1 Penetration Max . | . . . . Secondary Targets . | . . . . Shots Hit Robots 40 | 3 27 . 10 Core Hits 48 | 2 25 1 20 Critical Kills . | . . . . Critical Parts Destroyed . | . . . . Critical Strikes 1 | . 1 . . Corrupt 1 | . 1 . . Melee Attacks . | . . . . Impact . | . . . . Slashing . | . . . . Piercing . | . . . . Sneak Attacks . | . . . . Combat Hostiles . | . . . . Follow-up Attacks . | . . . . Damage Inflicted 1564 | 34 851 17 662 Guns 345 | 34 311 . . Cannons . | . . . . Explosions 1215 | . 540 17 658 Melee . | . . . . Ramming 4 | . . . 4 Kinetic 34 | 34 . . . Thermal . | . . . . Explosive 1215 | . 540 17 658 Electromagnetic 311 | . 311 . . Impact . | . . . . Slashing . | . . . . Piercing . | . . . . Highest Corruption . | . . . . Average Corruption . | . . . . Corruption Purged . | . . . . Corruption Blocked . | . . . . Overload Shots . | . . . . Overflow Damage 16 | . 6 . 10 Projectiles . | . . . . Explosions 16 | . 6 . 10 Melee . | . . . . Knockbacks . | . . . . Impact . | . . . . Kinetic . | . . . . Secondary . | . . . . Self-Inflicted Damage 75 | . 19 . 56 Shots 4 | . 1 . 3 Rammed 2 | . . . 2 Targets Rammed 3 | . . . 3 Kicked 1 | . . . 1 Crushed . | . . . . Highest Temperature 72 | . 72 . . Average Temperature 22 | . 22 . . Received Heat Transfer 651 | . 183 . 468 Siege Activations . | . . . . Robots Corrupted . | . . . . Combat Hostiles . | . . . . Parts Fried 1 | . 1 . . Impact Corruptions . | . . . . Robots Melted . | . . . . Combat Hostiles . | . . . . Parts Melted . | . . . . Heat Transferred . | . . . . Parts Sabotaged . | . . . . Parts Stolen . | . . . . Parts Stripped . | . . . . Power Chain Reactions . | . . . . Alert | -11 -10 -10 -9 ------- Run | Yrd Mat Min Mat Peak Influence 372 | 5 330 133 372 Initial 128 | . 3 128 51 Average 138 | 2 156 129 147 Maximum Alert Level 1 | . 1 . 1 Low Security (%) 84 | 100 66 100 89 Level 1 15 | . 33 . 10 Level 2 . | . . . . Level 3 . | . . . . Level 4 . | . . . . Level 5 . | . . . . High Security . | . . . . Max Security . | . . . . Squads Dispatched 9 | . 6 . 3 Investigation 4 | . 4 . . Extermination . | . . . . Reinforcement 5 | . 2 . 3 Assault . | . . . . Garrison . | . . . . Intercept . | . . . . Searches Triggered . | . . . . Construction Impeded 1 | . . . 1 Haulers Reinforced . | . . . . Active Scanning Responses . | . . . . Cargo Convoy Interrupts . | . . . . Stealth | -11 -10 -10 -9 --------- Run | Yrd Mat Min Mat Distress Signals 2 | . . . 2 Communications Jammed . | . . . . Distress Signals . | . . . . Times Spotted 34 | . 16 1 17 Peak Tracking Total 8 | . 3 1 8 Tactical Retreats 1 | . 1 . . Traps | -11 -10 -10 -9 ------- Run | Yrd Mat Min Mat Traps Triggered . | . . . . Indirectly . | . . . . Trap Hack Attempts . | . . . . Triggered . | . . . . Disarmed . | . . . . Reprogrammed . | . . . . Reused . | . . . . Traps Extracted . | . . . . Installed . | . . . . Triggered 2 | . 2 . . Machines | -11 -10 -10 -9 ---------- Run | Yrd Mat Min Mat Machines Disabled 4 | . . . 4 Max in Single Turn 2 | . . . 2 Machines Repaired . | . . . . Machines Dismantled . | . . . . Machines Sabotaged . | . . . . Overloaded Fab Kills . | . . . . Hacking | -11 -10 -10 -9 --------- Run | Yrd Mat Min Mat Machines Accessed 3 | . 3 . . Terminals 3 | . 3 . . Fabricators . | . . . . Repair Stations . | . . . . Recycling Units . | . . . . Scanalyzers . | . . . . Garrison Access . | . . . . Total Hacks 8 | . 8 . . Successful 5 | . 5 . . Failed 3 | . 3 . . Catastrophic . | . . . . Database Lockouts . | . . . . Manual 2 | . 2 . . Terminals 8 | . 8 . . Fabricators . | . . . . Repair Stations . | . . . . Recycling Units . | . . . . Scanalyzers . | . . . . Garrison Access . | . . . . Terminal Hacks 5 | . 5 . . Record 2 | . 2 . . Prototype ID Bank 1 | . 1 . . Branch Access Points 1 | . 1 . . Dispatch Records 1 | . 1 . . Fabricator Hacks . | . . . . Repair Station Hacks . | . . . . Recycling Unit Hacks . | . . . . Scanalyzer . | . . . . Garrison Access Hacks . | . . . . Unauthorized Hacks . | . . . . Terminals . | . . . . Fabricators . | . . . . Repair Stations . | . . . . Recycling Units . | . . . . Scanalyzers . | . . . . Garrison Access . | . . . . Data Cores Recovered . | . . . . Used . | . . . . Hacking Detections 3 | . 3 . . Full Trace Events 2 | . 2 . . Feedback Events . | . . . . Feedback Blocked . | . . . . Robot Schematics Acquired . | . . . . Robots Built . | . . . . Authchips . | . . . . Time . | . . . . Total Robot Build Rating . | . . . . Part Schematics Acquired . | . . . . Parts Built . | . . . . Authchips . | . . . . Time . | . . . . Total Part Build Rating . | . . . . Parts Repaired . | . . . . Time . | . . . . Parts Recycled . | . . . . Recycled Matter . | . . . . Retrieved Matter . | . . . . Retrieved Components . | . . . . Parts Scanalyzed . | . . . . Part Schematics Acquired . | . . . . Parts Damaged . | . . . . Bothacking | -11 -10 -10 -9 ------------ Run | Yrd Mat Min Mat Used RIF Installer . | . . . . Robots Hacked . | . . . . Non-combat . | . . . . Combat . | . . . . Robot Hacks Applied . | . . . . Relay Couplers Released . | . . . . Fabnet Peak Effective % . | . . . . Robots Rewired . | . . . . Allies Hacked . | . . . . Hacks Repelled . | . . . . Allies | -11 -10 -10 -9 -------- Run | Yrd Mat Min Mat Total Allies . | . . . . Largest Group . | . . . . Highest-Rated Group . | . . . . Highest-Rated Ally . | . . . . Total Orders . | . . . . Ally Attacks . | . . . . Total Damage . | . . . . Kills . | . . . . Allies Corrupted . | . . . . Allies Melted . | . . . . Intel | -11 -10 -10 -9 ------- Run | Yrd Mat Min Mat Robot Analysis Total . | . . . . Derelict Logs Recovered . | . . . . Drone Launches . | . . . . Drone Recoveries . | . . . . Exploration | -11 -10 -10 -9 ------------- Run | Yrd Mat Min Mat Turns Passed 1091 | 72 318 145 556 Spaces Moved 603 | 48 169 112 274 Core 23 | 16 . . 7 Treads . | . . . . Legs 540 | 32 169 112 227 Wheels . | . . . . Hover 40 | . . . 40 Flight . | . . . . Fastest Speed 50 | 50 120 120 116 Average Speed 140 | 96 120 120 168 Slowest Speed 260 | 120 120 120 260 Overloaded Moves . | . . . . Propulsion Burnouts . | . . . . Robots Hopped . | . . . . Cave-ins Triggered . | . . . . Exploration Rate (%) 23 | 4 40 22 27 Regions Visited 3 Branch Regions 1 Pre-discovered Areas . | . . . . Known Exits Taken 1 | . 1 . . Unknown Exits Taken 2 | 1 . 1 . Scrap Searched . | . . . . Spaces Dug . | . . . . Terrain Destroyed 174 | . 52 11 111 Melee . | . . . . Projectile . | . . . . AOE 174 | . 52 11 111 Terrain Rammed . | . . . . Walls Destroyed . | . . . . Machines Disabled . | . . . . Actions | -11 -10 -10 -9 --------- Run | Yrd Mat Min Mat Total 754 | 70 228 118 338 Wait 27 | . 7 . 20 Move 600 | 47 168 111 274 Hop . | . . . . Pick Up 23 | 9 7 1 6 Fast Attach . | . . . . Attach 22 | 8 2 1 11 Detach 2 | . . . 2 Swap 12 | . 3 4 5 Drop 5 | 2 1 . 2 Fire 60 | 4 40 1 15 Melee . | . . . . Ram 2 | . . . 2 Kick 1 | . . . 1 Crush . | . . . . Escape Stasis . | . . . . Rewire . | . . . . Trap . | . . . . Miscellaneous . | . . . . Route ------- -11/Scrapyard -10/Materials -10/Mines -9/Materials History --------- Turn | Location | Event 2 | -11/Scrapyard | Met Revision 17 13 | -11/Scrapyard | Discovered new exit (range 16) 73 | -11/Scrapyard | Entered Materials 315 | -10/Materials | Build established: Mutant 345 | -10/Materials | Identified exit to Mines 391 | -10/Materials | Entered Mines 392 | -10/Mines | Assembled infested the area 397 | -10/Mines | Assisted by a Guerilla fighting off Assembled 409 | -10/Mines | YI-UF0 nonchalantly dropped a Grenade Launcher on the ground 461 | -10/Mines | Discovered new exit (range 7) 536 | -10/Mines | Entered Materials 536 | -9/Materials | Evolved 2 slots: Utility x2 1027 | -9/Materials | Core integrity fell below 50% 1078 | -9/Materials | Core integrity fell below 20% 1092 | -9/Materials | Destroyed by G-34 Mercenary with Small Laser Last Messages --------------- 00967_ Kicked U-05 Engineer. 00968_ U-05 Engineer lays Concrete. 00969_ Acquired 1 matter. 00970_ U-05 Engineer lays Concrete. 00977_ U-05 Engineer builds a Wall. 00979_ Acquired 5 matter. 00984_ U-05 Engineer lays Concrete. 00991_ Acquired Beam Rifle. 00994_ Acquired Hover Unit. 01001_ Dropped Heat Sink. 01006_ Slammed into G-34 Mercenary. 01007_ Destabilizing: Core damaged (-8). 01008_ U-05 Engineer lays Concrete. 01036_ Hover Unit destroyed. 01043_ K-01 Serf collects debris. 01056_ Lgt. Armor Plating destroyed. 01058_ Hover Unit destroyed. 01075_ Aluminum Leg destroyed. 01081_ Terrain Scanner destroyed. 01087_ Acquired Pulse Rifle. Map ----- +----------------------------------------------------+ | ?????????????????????????????????????????????????? | | ?????????????????????????????????????????????????? | | ?????????????????????????????????????????????????? | | ?????????????????????????????????????????????????? | | ?????????????????????????????????????????????????? | | ?????????????????????????????????????????????????? | | ?????????????????????????????????????????????????? | | ?????????????????????????????????????????????????? | | ?????????????????????????????????????????????????? | | ?????????????????????????????????????????????????? | | ?????????????????????????????????????????????????? | | ?????????????????????????????????????????????????? | | ?????????????????????????????????????????????????? | | ?????????????????????????????????????????????????? | | ?????????????????????????????????????????????????? | | ?????????????????????????????????????????????????? | | ?????????????????????????? ??????????????????????? | | ?????????????????????????????????????????????????? | | ???????????????????????????????????????????????### | | ????????????????????#?????????????????????????? | | ??????????????????????????????????????????????? | | ??????????????????????????????????????????????? | | ??????????????????????????????????????????????? | | ???????????????????########???????????????????# | | ???????????????????#!!!![[#???????????????????# | | ???????????????????#!!!! @#???????????????????# | | ???????????????????# #???????????????????# | | ???????????????????### ##??????????????????# | | ?????????????????????# ##########?????????# | | ?????????????????????# # #??######## | | ?????????????????????# + """ #??# # | | ?????????????????????# # "T" #??#= # | | ?????????????????????# # #??#=! + | | ??????????????????#??## ## "" #??#= # | | ??????????############# ## "" #??# ! # | | ????????? gggg## "" #??# # | | ????????? #? "" #??######## | | ????????? #??? ???????????# | | ??????????############# #??###+###??????????# | | ??????????????????????# #### ############ | | ??????????????????????# | | ??????????????????????# | | ??????????????????????# " | | ???????????????###########+### ############ | | ???????????????# ## ##?#????????# " | | ???????????????# """ """ """ ## ##?#????????# | | ???????????????# """ """ """ ## ##??????????+ | | ?????????????????""" """ """ ## #???????????# " | | ????????????????? ## #???????#?#?# " | | ????????????????? = ## ############# " | +----------------------------------------------------+ Best States ------------- Heat Dissipation 48 Energy Generation 10 Energy Capacity 125 Matter Stores 300 Matter Capacity 300 Sight Range 16 Terrain Scan Range 14 Terrain Scan Density 10 Armor Coverage 150 Evasion (%) 55 Item Schematics ----------------- None Robot Schematics ------------------ None Fabricated ------------ Nothing Alien Tech Used ----------------- None Achievements -------------- Party Time Challenges ------------ None Game ------ Seed HypercooledPowerMatter Manual? 0 Play Time 00:20:19 Cumulative 3.1 hours Start 2025.04.01 @ 00:43:43 End 2025.04.01 @ 01:02:20 Sessions 1 Manual Loads 0 Difficulty Rogue Special Mode None Game No. 3 Rogue 2 Adventurer 1 Explorer 0 Win Type - Total 0 Types 0/0/0/0/0/0/0/0/0 Lore% 0 Gallery% 8 Achievement% 8 Wizard Run 0 Options --------- Layout 2 ASCII 0 Keyboard 0 Movement Mouse Keybinds 0 Fullscreen 2 Font 24/Proggy Map View 50x44 Zoom Use 7% Tactical HUD 1 Map Filters NONE Filters NONE Steam 1 RUN: dfba6291-ca4b-4c0c-ae5c-13e51e7cf632